bitfinex/quotes_BTCUSD_20250513
["timestamp","ask_amount","ask_price","bid_price","bid_amount"]
[1747094402539,0.13030542,102860.0,102850.0,0.05048716]
[1747094403004,0.73030542,102860.0,102850.0,0.05048716]
[1747094403212,0.44670542,102860.0,102850.0,0.05048716]
[1747094404130,0.43030542,102860.0,102850.0,0.05048716]
[1747094405165,0.73030542,102860.0,102850.0,0.05048716]
[1747094405325,1.10174542,102860.0,102850.0,0.05048716]
[1747094405552,1.29618446,102860.0,102850.0,0.05048716]
[1747094405784,1.31158446,102860.0,102850.0,0.05048716]
[1747094405985,1.33102769,102860.0,102850.0,0.05048716]
[1747094406392,1.35829915,102860.0,102850.0,0.05048716]
[1747094408474,1.34289915,102860.0,102850.0,0.05048716]
[1747094409151,1.32769915,102860.0,102850.0,0.05048716]
[1747094410521,1.34319915,102860.0,102850.0,0.05048716]
[1747094410944,1.35839915,102860.0,102850.0,0.05048716]
[1747094412223,1.34319915,102860.0,102850.0,0.05048716]
[1747094413528,1.32769915,102860.0,102850.0,0.05048716]
[1747094414919,1.14177915,102860.0,102850.0,0.08078716]
[1747094415835,1.14177915,102860.0,102850.0,0.05048716]
[1747094415836,1.15677915,102860.0,102850.0,0.05048716]
[1747094416053,1.17187915,102860.0,102850.0,0.05048716]
[1747094424364,1.35759915,102860.0,102850.0,0.05048716]
[1747094432409,0.78214,102860.0,102850.0,0.05048716]
[1747094432809,0.811345,102860.0,102850.0,0.05048716]
[1747094435844,0.78214,102860.0,102850.0,0.05048716]
[1747094436606,0.8853,102860.0,102850.0,0.05048716]
[1747094436782,1.0697,102860.0,102850.0,0.05048716]
[1747094437179,1.0797,102860.0,102850.0,0.05048716]
[1747094437784,0.65625915,102860.0,102850.0,0.08268716]
[1747094437988,1.29778769,102860.0,102850.0,0.09103356]
[1747094438189,1.29778769,102860.0,102850.0,0.08268716]
[1747094438424,0.92898769,102860.0,102850.0,0.08268716]
[1747094438630,1.29778769,102860.0,102850.0,0.08268716]
[1747094439284,1.29774769,102860.0,102850.0,0.08268716]
[1747094439918,1.29770769,102860.0,102850.0,0.08268716]
[1747094440668,1.3276505,102860.0,102850.0,0.08268716]
[1747094440884,1.29770769,102860.0,102850.0,0.08268716]
[1747094441103,1.11338769,102860.0,102850.0,0.08268716]
[1747094441312,1.29770769,102860.0,102850.0,0.08268716]
[1747094442400,1.32930769,102860.0,102850.0,0.05048716]
[1747094442615,1.0710712,102860.0,102850.0,0.05048716]
[1747094443510,1.0558712,102860.0,102850.0,0.05048716]
[1747094443720,1.04133035,102860.0,102850.0,0.05048716]
[1747094446357,1.38133035,102860.0,102850.0,0.05048716]
[1747094446990,1.39683035,102860.0,102850.0,0.05048716]
[1747094450003,1.02811035,102860.0,102850.0,0.05048716]
[1747094450162,1.39667035,102860.0,102850.0,0.05048716]
[1747094450366,1.39605294,102860.0,102850.0,0.05048716]
[1747094452394,1.41059379,102860.0,102850.0,0.05048716]
[1747094453144,1.22922543,102860.0,102850.0,0.05048716]
[1747094453344,1.23456234,102860.0,102850.0,0.05048716]
[1747094455391,1.21906234,102860.0,102850.0,0.05048716]
[1747094457199,1.22879612,102860.0,102850.0,0.05048716]
[1747094459539,1.21239612,102860.0,102850.0,0.05048716]
[1747094460538,1.22859612,102860.0,102850.0,0.05048716]
[1747094463318,1.25581651,102860.0,102850.0,0.05048716]
[1747094466997,0.88725651,102860.0,102850.0,0.05048716]
[1747094467226,1.25597651,102860.0,102850.0,0.05048716]
[1747094472038,1.27127651,102860.0,102850.0,0.05048716]
[1747094477247,1.25597651,102860.0,102850.0,0.05048716]
[1747094480969,1.23977651,102860.0,102850.0,0.05048716]
[1747094482100,1.25577651,102860.0,102850.0,0.05048716]
[1747094485173,1.27147651,102860.0,102850.0,0.05048716]
[1747094492532,1.25577651,102860.0,102850.0,0.05048716]
[1747094493043,1.23977651,102860.0,102850.0,0.05048716]
[1747094494440,1.04087566,102860.0,102850.0,0.05048716]
[1747094494649,1.52619566,102860.0,102850.0,0.08258716]
[1747094495732,1.52619566,102860.0,102850.0,0.05048716]
[1747094502364,1.54209566,102860.0,102850.0,0.05048716]
[1747094503149,1.57263651,102860.0,102850.0,0.05048716]
[1747094506584,1.58263651,102860.0,102850.0,0.05048716]
[1747094514259,1.26663651,102860.0,102850.0,0.05048716]
[1747094514480,1.05541651,102860.0,102850.0,0.05048716]
[1747094514656,1.25097651,102860.0,102850.0,0.05048716]
[1747094515186,1.25086845,102860.0,102850.0,0.05048716]
[1747094515849,0.87094845,102860.0,102850.0,0.05048716]
[1747094516096,1.24162845,102860.0,102850.0,0.05048716]
[1747094516318,1.25832922,102860.0,102850.0,0.05048716]
[1747094516482,1.25832922,102860.0,102850.0,0.08218716]
[1747094517337,1.25832922,102860.0,102850.0,0.06648716]
[1747094520847,1.25832922,102860.0,102850.0,0.05048716]
[1747094525945,1.27452922,102860.0,102850.0,0.05048716]
[1747094526783,1.28952922,102860.0,102850.0,0.05048716]
[1747094526995,1.35792922,102860.0,102850.0,0.05048716]
[1747094537441,1.35792922,102860.0,102850.0,0.04232717]
[1747094537655,1.34792922,102860.0,102850.0,0.04232717]
[1747094537860,0.94812149,102850.0,102840.0,0.00077686]
[1747094538069,1.07119618,102850.0,102840.0,0.00077686]
[1747094538309,0.59428551,102830.0,102820.0,0.05006]
[1747094538524,1.5806402,102830.0,102820.0,0.05006]
[1747094538771,1.88511018,102830.0,102820.0,0.011617]
[1747094538998,1.17071832,102800.0,102790.0,0.0656159]
[1747094539237,1.42352628,102800.0,102790.0,0.0656159]
[1747094539585,1.43892628,102800.0,102790.0,0.0656159]
[1747094540283,1.15547477,102800.0,102790.0,0.05782794]
[1747094540513,1.25547477,102800.0,102790.0,0.01079794]
[1747094540705,1.25647477,102800.0,102790.0,0.00300998]
[1747094540907,1.28357782,102800.0,102790.0,0.00300998]
[1747094541115,1.53529983,102790.0,102780.0,0.07348259]
[1747094541289,2.05151413,102790.0,102780.0,0.0248078]
[1747094541515,0.56886056,102780.0,102770.0,0.00082444]
[1747094541758,1.05309508,102780.0,102770.0,0.00082444]
[1747094542448,1.06819508,102780.0,102770.0,0.00082444]
[1747094542701,1.07719508,102780.0,102770.0,0.00082444]
[1747094542955,1.08229508,102780.0,102770.0,0.00082444]
[1747094543201,1.49908044,102770.0,102760.0,0.00132521]
[1747094543439,0.81413208,102740.0,102730.0,0.05]
[1747094543667,0.98401565,102740.0,102730.0,0.0817]
[1747094544133,1.00133482,102740.0,102730.0,0.0817]
[1747094544823,1.00138326,102740.0,102730.0,0.0817]
[1747094545073,0.65537125,102740.0,102730.0,0.29585293]
[1747094545345,0.66483739,102740.0,102730.0,0.0817]
[1747094545555,0.66483739,102740.0,102730.0,0.29585312]
[1747094545759,0.64537145,102740.0,102730.0,0.28611925]
[1747094545981,0.64537145,102740.0,102730.0,0.29585312]
[1747094546259,0.64637145,102740.0,102730.0,0.29585312]
[1747094546481,0.63663815,102740.0,102730.0,0.0817]
[1747094547100,0.54078385,102740.0,102730.0,0.28611915]
[1747094547534,1.436059,102740.0,102730.0,0.05]
[1747094548204,2.119259,102740.0,102730.0,0.05]
[1747094548624,2.10471815,102740.0,102730.0,0.05]
[1747094548829,2.10471815,102740.0,102730.0,0.0659]
[1747094549450,2.10471815,102740.0,102730.0,0.05]
[1747094553486,2.10471815,102740.0,102730.0,0.0818]
[1747094553691,2.10471815,102740.0,102730.0,0.05]
[1747094554725,1.80475815,102740.0,102730.0,0.0823]
[1747094554929,1.98955815,102740.0,102730.0,0.0823]
[1747094555147,1.61983815,102740.0,102730.0,0.0823]
[1747094555368,1.80463815,102740.0,102730.0,0.0823]
[1747094555800,1.31983815,102740.0,102730.0,0.0823]
[1747094556012,1.22398385,102740.0,102730.0,0.0823]
[1747094557515,0.90344969,102740.0,102730.0,0.0823]
[1747094557756,0.89371715,102740.0,102730.0,0.0823]
[1747094560372,0.98957145,102740.0,102730.0,0.0823]
[1747094560573,1.32957145,102740.0,102730.0,0.0823]
[1747094561149,1.51513145,102740.0,102730.0,0.05]
[1747094561361,1.81513145,102740.0,102730.0,0.05]
[1747094561823,2.11513145,102740.0,102730.0,0.05]
[1747094564932,2.30049145,102740.0,102730.0,0.05]
[1747094567180,1.63197685,102740.0,102730.0,0.05]
[1747094568956,1.6631177,102740.0,102730.0,0.05]
[1747094569174,1.3631177,102740.0,102730.0,0.05]
[1747094569818,1.3621177,102740.0,102730.0,0.05]
[1747094570040,1.3611177,102740.0,102730.0,0.05]
[1747094570256,1.3621177,102740.0,102730.0,0.05]
[1747094571353,1.3631177,102740.0,102730.0,0.05]
[1747094573437,1.67364366,102740.0,102730.0,0.05]
[1747094573648,1.65910281,102740.0,102730.0,0.05]
[1747094573862,0.87338281,102740.0,102730.0,0.0808]
[1747094574073,0.84625685,102740.0,102730.0,0.0808]
[1747094574302,0.84625685,102740.0,102730.0,0.0658]
[1747094574921,0.84625685,102740.0,102730.0,0.05]
[1747094575321,0.87341299,102740.0,102730.0,0.05]
[1747094581514,0.87341299,102740.0,102730.0,0.0659]
[1747094581799,0.87305299,102740.0,102730.0,0.0824]
[1747094585013,0.84589685,102740.0,102730.0,0.0824]
[1747094587170,0.84589685,102740.0,102730.0,0.05]
[1747094587484,0.84589685,102740.0,102730.0,0.0665]
[1747094587670,0.84589685,102740.0,102730.0,0.0824]
[1747094588126,0.66105685,102740.0,102730.0,0.0824]
[1747094588333,0.84589685,102740.0,102730.0,0.0824]
[1747094590655,0.22520255,102740.0,102730.0,0.0824]
[1747094591093,0.56520255,102740.0,102730.0,0.0824]
[1747094593418,0.57493566,102740.0,102730.0,0.08434668]
[1747094594479,0.57086639,102740.0,102730.0,0.08434668]
[1747094595086,0.57086639,102740.0,102730.0,0.0824]
[1747094603952,0.66672069,102740.0,102730.0,0.05]
[1747094604164,0.68192069,102740.0,102730.0,0.05]
[1747094604382,0.69712069,102740.0,102730.0,0.05]
[1747094606333,0.88192069,102740.0,102730.0,0.05]
[1747094606565,0.86672069,102740.0,102730.0,0.05]
[1747094606765,0.85152069,102740.0,102730.0,0.05]
[1747094609700,0.66672069,102740.0,102730.0,0.05]
[1747094609907,0.85260069,102740.0,102730.0,0.05]
[1747094611182,0.85260069,102740.0,102730.0,0.065]
[1747094611440,0.85260069,102740.0,102730.0,0.0812]
[1747094611638,0.85260069,102740.0,102730.0,0.065]
[1747094611951,0.85260069,102740.0,102730.0,0.05]
[1747094616891,0.85260069,102740.0,102730.0,0.0817]
[1747094617319,0.85260069,102740.0,102730.0,0.05]
[1747094617526,0.86780069,102740.0,102730.0,0.05]
[1747094621055,0.85260069,102740.0,102730.0,0.05]
[1747094625543,0.85256069,102740.0,102730.0,0.05]
[1747094627330,0.85244069,102740.0,102730.0,0.05]
[1747094631212,0.66672069,102740.0,102730.0,0.0815]
[1747094631440,0.66672069,102740.0,102730.0,0.29759986]
[1747094631441,0.37620025,102740.0,102730.0,0.29759986]
[1747094631780,0.37620025,102740.0,102730.0,0.34780378]
[1747094631781,0.58059894,102740.0,102730.0,0.34780378]
[1747094632036,0.02646638,102740.0,102730.0,0.31512068]
[1747094632279,0.04593204,102740.0,102730.0,0.31512068]
[1747094632508,0.05566515,102740.0,102730.0,0.31512068]
[1747094634265,0.05566515,102740.0,102730.0,0.34645207]
[1747094634481,0.05566515,102740.0,102730.0,0.42012487]
[1747094634698,0.03619902,102740.0,102730.0,0.42012487]
[1747094635108,0.04593194,102740.0,102730.0,0.42012487]
[1747094635926,0.03619902,102740.0,102730.0,0.42012487]
[1747094636192,0.04593194,102740.0,102730.0,0.42012487]
[1747094636356,0.03619902,102740.0,102730.0,0.42012487]
[1747094636557,0.04593194,102740.0,102730.0,0.42012487]
[1747094636732,0.05566496,102740.0,102730.0,0.42012487]
[1747094637308,0.06539817,102740.0,102730.0,0.34645207]
[1747094638534,0.04593185,102740.0,102730.0,0.34645207]
[1747094638713,0.05566496,102740.0,102730.0,0.34645207]
[1747094640481,0.05566496,102740.0,102730.0,0.31512068]
[1747094641353,0.06539817,102740.0,102730.0,0.31512068]
[1747094642196,0.26006516,102740.0,102730.0,0.31512087]
[1747094642645,0.23086649,102740.0,102730.0,0.05]
[1747094642845,0.34292079,102740.0,102730.0,0.05]
[1747094643097,0.88406079,102740.0,102730.0,0.05]
[1747094644123,0.88401674,102740.0,102730.0,0.05]
[1747094645391,1.18401674,102740.0,102730.0,0.05]
[1747094646472,1.18401674,102740.0,102730.0,0.055]
[1747094647351,1.18401674,102740.0,102730.0,0.05]
[1747094652350,0.85235674,102740.0,102730.0,0.05]
[1747094652610,0.86755674,102740.0,102730.0,0.05]
[1747094657774,0.88355674,102740.0,102730.0,0.05]
[1747094669615,0.86755674,102740.0,102730.0,0.05]
[1747094670631,0.88405674,102740.0,102730.0,0.05]
[1747094671893,0.91399955,102740.0,102730.0,0.05]
[1747094672108,1.30443899,102740.0,102730.0,0.05]
[1747094673215,1.30343899,102740.0,102730.0,0.05]
[1747094673475,1.22877239,102740.0,102730.0,0.05]
[1747094673691,1.23677239,102740.0,102730.0,0.05]
[1747094679289,1.23677239,102740.0,102730.0,0.04491631]
[1747094682284,1.29523239,102740.0,102730.0,0.04491631]
[1747094682507,1.23677239,102740.0,102730.0,0.04491631]
[1747094682741,0.60091462,102720.0,102710.0,0.00087203]
[1747094682996,1.19402372,102720.0,102710.0,0.00087203]
[1747094684146,1.20302372,102720.0,102710.0,0.00087203]
[1747094685457,1.19089981,102710.0,102700.0,0.05]
[1747094685703,1.70755411,102710.0,102700.0,0.05]
[1747094686174,1.70755411,102710.0,102700.0,0.04220747]
[1747094686395,2.01755411,102710.0,102700.0,0.04220747]
[1747094686607,2.02355411,102710.0,102700.0,0.03441494]
[1747094686831,2.39895411,102710.0,102700.0,0.03441494]
[1747094687470,2.13684764,102710.0,102700.0,0.03441494]
[1747094687677,2.08891411,102710.0,102700.0,0.03441494]
[1747094688306,1.71855411,102710.0,102700.0,0.03441494]
[1747094688515,1.40243326,102710.0,102700.0,0.03441494]
[1747094688725,1.75763326,102710.0,102700.0,0.03441494]
[1747094688925,1.41763326,102710.0,102700.0,0.03441494]
[1747094689129,1.78777411,102710.0,102700.0,0.03441494]
[1747094689336,1.78773411,102710.0,102700.0,0.03441494]
[1747094690172,1.41745411,102710.0,102700.0,0.03441494]
[1747094690365,1.78769411,102710.0,102700.0,0.03441494]
[1747094691838,1.71745411,102710.0,102700.0,0.03441494]
[1747094692052,2.08757411,102710.0,102700.0,0.03441494]
[1747094692467,1.68731326,102710.0,102700.0,0.03441494]
[1747094692668,2.05739326,102710.0,102700.0,0.02662007]
[1747094692862,2.07299326,102710.0,102700.0,0.02662007]
[1747094693129,2.07299326,102710.0,102700.0,0.0188252]
[1747094693574,2.05739326,102710.0,102700.0,0.01103033]
[1747094693956,2.05739326,102710.0,102700.0,0.00323546]
[1747094694410,0.55423635,102690.0,102680.0,0.0470759]
[1747094694672,0.73947635,102690.0,102680.0,0.0470759]
[1747094695301,0.73704219,102690.0,102680.0,0.0470759]
[1747094695722,0.73704219,102690.0,102680.0,0.04756448]
[1747094695935,0.73804219,102690.0,102680.0,0.04756448]
[1747094696148,0.73904219,102690.0,102680.0,0.04756448]
[1747094697188,0.55380219,102690.0,102680.0,0.04756448]
[1747094699792,0.98205649,102690.0,102680.0,0.01616448]
[1747094700033,1.35209649,102690.0,102680.0,0.01616448]
[1747094700295,1.06663734,102690.0,102680.0,0.01616448]
[1747094700742,1.36663734,102690.0,102680.0,0.01616448]
[1747094701767,1.02381852,102690.0,102680.0,0.01616448]
[1747094701971,1.46195767,102690.0,102680.0,0.01616448]
[1747094702417,1.64735767,102690.0,102680.0,0.01616448]
[1747094703109,1.47166512,102690.0,102680.0,0.01616448]
[1747094703523,1.39299852,102690.0,102680.0,0.01616448]
[1747094703740,1.29227767,102690.0,102680.0,0.01616448]
[1747094703959,1.34759767,102690.0,102680.0,0.03246448]
[1747094704156,1.34759767,102690.0,102680.0,0.04816448]
[1747094704545,1.34759767,102690.0,102680.0,0.03246448]
[1747094704963,0.67687767,102690.0,102680.0,0.23884437]
[1747094705169,0.86259767,102690.0,102680.0,0.04406448]
[1747094705700,0.76674337,102690.0,102680.0,0.04406448]
[1747094706155,0.58102337,102690.0,102680.0,0.04406448]
[1747094707877,0.22354023,102690.0,102680.0,0.27636516]
[1747094708302,0.21380266,102690.0,102680.0,0.24858317]
[1747094708511,0.20649897,102690.0,102680.0,0.24858317]
[1747094708721,0.19676093,102690.0,102680.0,0.04406448]
[1747094709956,0.19676093,102690.0,102680.0,0.02826448]
[1747094710215,0.19676093,102690.0,102680.0,0.01196448]
[1747094710445,0.63261523,102690.0,102680.0,0.01196448]
[1747094711596,0.53676093,102690.0,102680.0,0.04416448]
[1747094713746,0.53676093,102690.0,102680.0,0.24868327]
[1747094714764,0.55623673,102690.0,102680.0,0.26816059]
[1747094715115,0.55623673,102690.0,102680.0,0.27381055]
[1747094715116,0.3614758,102690.0,102680.0,0.27381055]
[1747094715323,0.55623673,102690.0,102680.0,0.28354897]
[1747094715780,0.37121308,102690.0,102680.0,0.2932873]
[1747094716004,0.03121298,102690.0,102680.0,0.2932873]
[1747094716216,0.04095093,102690.0,102680.0,0.2932873]
[1747094717017,0.05068897,102690.0,102680.0,0.2932873]
[1747094717444,0.23571243,102690.0,102680.0,0.27381055]
[1747094718780,0.23571243,102690.0,102680.0,0.28354916]
[1747094719001,0.22597477,102690.0,102680.0,0.28354916]
[1747094719212,0.21623692,102690.0,102680.0,0.28354916]
[1747094719551,0.20649897,102690.0,102680.0,0.04981425]
[1747094719774,0.19676093,102690.0,102680.0,0.04981425]
[1747094722224,0.19676093,102690.0,102680.0,0.01761425]
[1747094723160,0.19676093,102690.0,102680.0,0.24788317]
[1747094723579,0.19676093,102690.0,102680.0,0.24788336]
[1747094724024,0.19676093,102690.0,102680.0,0.25762226]
[1747094724446,0.19676093,102690.0,102680.0,0.24788336]
[1747094724655,0.19676093,102690.0,102680.0,0.26736087]
[1747094724877,0.19676093,102690.0,102680.0,0.26736106]
[1747094726522,0.20649831,102690.0,102680.0,0.2928165]
[1747094726789,0.21623635,102690.0,102680.0,0.26736106]
[1747094727035,0.20649897,102690.0,102680.0,0.27300965]
[1747094727891,0.20649897,102690.0,102680.0,0.26327085]
[1747094728341,0.19676093,102690.0,102680.0,0.04901307]
[1747094728553,0.19676093,102690.0,102680.0,0.03361307]
[1747094729001,0.19676093,102690.0,102680.0,0.01761307]
[1747094729884,0.19676093,102690.0,102680.0,0.04861307]
[1747094731180,0.19676093,102690.0,102680.0,0.01761307]
[1747094733022,0.19676093,102690.0,102680.0,0.03311307]
[1747094733492,0.19676093,102690.0,102680.0,0.069934]
[1747094733723,0.20649888,102690.0,102680.0,0.26471389]
[1747094733944,0.03121365,102690.0,102680.0,0.29198254]
[1747094734166,0.22597458,102690.0,102680.0,0.27250531]
[1747094734382,0.22597458,102690.0,102680.0,0.08746432]
[1747094734556,0.22597458,102690.0,102680.0,0.28224421]
[1747094734781,0.22597458,102690.0,102680.0,0.27360965]
[1747094734989,0.22597458,102690.0,102680.0,0.28334836]
[1747094739118,0.22597458,102690.0,102680.0,0.29308697]
[1747094739557,0.22597458,102690.0,102680.0,0.28743838]
[1747094740004,0.02147561,102690.0,102680.0,0.28743772]
[1747094740208,0.03121365,102690.0,102680.0,0.28743772]
[1747094740414,0.03121365,102690.0,102680.0,0.33566108]
[1747094740595,0.22597458,102690.0,102680.0,0.33566127]
[1747094740862,0.22597458,102690.0,102680.0,0.28743791]
[1747094742153,0.22597458,102690.0,102680.0,0.28743743]
[1747094742361,0.03121365,102690.0,102680.0,0.29311434]
[1747094742694,0.002,102690.0,102680.0,0.63942286]
[1747094742904,0.03121261,102690.0,102680.0,0.63942286]
[1747094743142,0.03121261,102690.0,102680.0,0.71716735]
[1747094743623,0.03121261,102690.0,102680.0,0.46671313]
[1747094744515,0.02147485,102690.0,102680.0,0.46671313]
[1747094744694,0.02147475,102690.0,102680.0,0.90240735]
[1747094745554,0.03121241,102690.0,102680.0,0.90240735]
[1747094745769,0.002,102690.0,102680.0,0.9291628]
[1747094745998,0.002,102690.0,102680.0,1.12930365]
[1747094746450,0.002,102690.0,102680.0,0.75846365]
[1747094746657,0.01173728,102690.0,102680.0,0.59528671]
[1747094746859,0.21421663,102700.0,102680.0,0.59528671]
[1747094746860,0.01947371,102700.0,102690.0,0.25447392]
[1747094747080,0.01947314,102700.0,102690.0,0.35032822]
[1747094747278,0.09813861,102710.0,102700.0,0.24471548]
[1747094747491,0.10787409,102710.0,102700.0,0.254452]
[1747094747696,0.10787409,102710.0,102700.0,0.26418843]
[1747094748352,0.30259709,102710.0,102700.0,0.22524196]
[1747094748566,0.00973652,102700.0,102690.0,0.72256765]
[1747094748768,0.01073652,102700.0,102690.0,0.72256765]
[1747094748990,0.02047295,102700.0,102690.0,0.73230503]
[1747094749188,0.01947295,102700.0,102690.0,0.73230503]
[1747094750030,0.02047295,102700.0,102690.0,0.73730503]
[1747094750870,0.03020966,102700.0,102690.0,0.73730503]
[1747094751658,0.04968356,102700.0,102690.0,0.5415685]
[1747094751871,0.03994713,102700.0,102690.0,0.55130588]
[1747094752098,0.03994713,102700.0,102690.0,0.55130626]
[1747094752099,0.23568909,102700.0,102690.0,0.55130626]
[1747094752320,0.23568909,102700.0,102690.0,0.56104373]
[1747094752545,0.04094713,102700.0,102690.0,0.56104307]
[1747094752777,0.02147323,102700.0,102690.0,0.57547028]
[1747094753003,0.03121013,102700.0,102690.0,0.57547028]
[1747094753701,0.03121013,102700.0,102690.0,0.37463028]
[1747094753922,0.04094722,102700.0,102690.0,0.37463028]
[1747094754174,0.03121013,102700.0,102690.0,0.39103028]
[1747094754462,0.03121013,102700.0,102690.0,0.37660307]
[1747094754814,0.02147323,102700.0,102690.0,0.37660307]
[1747094755007,0.03121013,102700.0,102690.0,0.37660307]
[1747094755889,0.02147323,102700.0,102690.0,0.37660307]
[1747094757257,0.23568909,102700.0,102690.0,0.36686569]
[1747094757498,0.03121004,102700.0,102690.0,0.37660307]
[1747094757685,0.04094694,102700.0,102690.0,0.37660307]
[1747094757898,0.05068403,102700.0,102690.0,0.3668656]
[1747094758114,0.21621595,102700.0,102690.0,0.19976093]
[1747094758354,0.21621595,102700.0,102690.0,0.21923692]
[1747094758562,0.23221595,102700.0,102690.0,0.22897468]
[1747094758784,0.23221595,102700.0,102690.0,0.21923692]
[1747094758932,0.23221595,102700.0,102690.0,0.22897477]
[1747094759147,0.23221595,102700.0,102690.0,0.23811253]
[1747094759696,0.02147352,102700.0,102690.0,0.24784924]
[1747094759901,0.02147352,102700.0,102690.0,0.23811139]
[1747094760499,0.22595248,102700.0,102690.0,0.19916093]
[1747094760710,0.49867008,102700.0,102690.0,0.0044]
[1747094760932,0.49867008,102700.0,102690.0,0.19916093]
[1747094761133,0.24821586,102700.0,102690.0,0.19916093]
[1747094761585,0.23847896,102700.0,102690.0,0.0044]
[1747094762460,0.23847896,102700.0,102690.0,0.19916093]
[1747094762683,0.25795276,102700.0,102690.0,0.19916093]
[1747094762880,0.25795276,102700.0,102690.0,0.20889897]
[1747094763143,0.25795276,102700.0,102690.0,0.19916093]
[1747094763371,0.24821605,102700.0,102690.0,0.19916093]
[1747094764293,0.23847905,102700.0,102690.0,0.19916093]
[1747094764737,0.23847905,102700.0,102690.0,0.20889897]
[1747094764968,0.23847905,102700.0,102690.0,0.21863692]
[1747094765426,0.23847905,102700.0,102690.0,0.19916093]
[1747094765681,0.23847905,102700.0,102690.0,0.20889897]
[1747094766557,0.23847905,102700.0,102690.0,0.21863692]
[1747094766996,0.23847905,102700.0,102690.0,0.20889897]
[1747094768311,0.23847905,102700.0,102690.0,0.21863692]
[1747094769246,0.23847905,102700.0,102690.0,0.19916093]
[1747094769458,0.48893327,102700.0,102690.0,0.0044]
[1747094769664,0.82893327,102700.0,102690.0,0.0044]
[1747094770271,0.92478757,102700.0,102690.0,0.0044]
[1747094772337,1.11002757,102700.0,102690.0,0.0044]
[1747094772769,1.41002757,102700.0,102690.0,0.0044]
[1747094773789,1.40859055,102700.0,102690.0,0.0044]
[1747094776792,1.40332055,102700.0,102690.0,0.0044]
[1747094778271,1.4178614,102700.0,102690.0,0.0044]
[1747094778484,1.36831562,102700.0,102690.0,0.0044]
[1747094779758,0.83589878,102690.0,102680.0,0.01196448]
[1747094779967,1.61870152,102690.0,102680.0,0.01196448]
[1747094780931,1.66318518,102690.0,102680.0,0.01196448]
[1747094781159,1.63324237,102690.0,102680.0,0.01196448]
[1747094781994,1.63724237,102690.0,102680.0,0.01196448]
[1747094782191,1.64124237,102690.0,102680.0,0.01196448]
[1747094782810,1.39078815,102690.0,102680.0,0.01196448]
[1747094786188,1.64124237,102690.0,102680.0,0.01196448]
[1747094786624,2.32444237,102690.0,102680.0,0.01196448]
[1747094786865,2.36444237,102690.0,102680.0,0.01196448]
[1747094789474,2.06444237,102690.0,102680.0,0.01196448]
[1747094790113,2.42290237,102690.0,102680.0,0.00416927]
[1747094790503,0.21429895,102660.0,102650.0,0.00091962]
[1747094790748,0.49699325,102660.0,102650.0,0.0012299]
[1747094790956,0.40113895,102660.0,102650.0,0.23610837]
[1747094791171,0.01948054,102660.0,102650.0,0.25559119]
[1747094791381,0.03896184,102660.0,102650.0,0.26533236]
[1747094791598,0.04870273,102660.0,102650.0,0.25659119]
[1747094791801,0.24552057,102660.0,102650.0,0.25859119]
[1747094792053,0.02148092,102660.0,102650.0,0.26833236]
[1747094792266,0.23578044,102660.0,102650.0,0.23910837]
[1747094792475,0.22604003,102660.0,102650.0,0.23910837]
[1747094793900,0.24038842,102660.0,102650.0,0.23910837]
[1747094794208,0.24038842,102660.0,102650.0,0.24884973]
[1747094794410,0.24038842,102660.0,102650.0,0.24884983]
[1747094794636,0.02608852,102660.0,102650.0,0.50904522]
[1747094794875,0.01634839,102660.0,102650.0,0.50904522]
[1747094795089,0.002,102660.0,102650.0,0.61016298]
[1747094795510,0.002,102660.0,102650.0,0.69322212]
[1747094795727,0.002,102660.0,102650.0,0.87946212]
[1747094796511,0.002,102660.0,102650.0,0.87419866]
[1747094797997,0.002,102660.0,102650.0,0.88873951]
[1747094798206,0.002,102660.0,102650.0,1.49019373]
[1747094798616,0.002,102660.0,102650.0,1.50019373]
[1747094799101,0.001,102660.0,102650.0,1.49819373]
[1747094799526,0.001,102660.0,102650.0,1.49919373]
[1747094799969,0.002,102660.0,102650.0,1.50519373]
[1747094800854,0.002,102660.0,102650.0,1.17168037]
[1747094802798,0.002,102660.0,102650.0,1.27418037]
[1747094802968,0.002,102660.0,102650.0,1.17168037]
[1747094806802,0.002,102660.0,102650.0,1.16168037]
[1747094807094,0.002,102660.0,102650.0,1.17168037]
[1747094807270,0.002,102660.0,102650.0,1.26753467]
[1747094808630,0.002,102660.0,102650.0,0.94106615]
[1747094808835,0.002,102660.0,102650.0,1.34908037]
[1747094809168,0.002,102660.0,102650.0,1.33453952]
[1747094809347,0.002,102660.0,102650.0,1.32453952]
[1747094809764,0.002,102660.0,102650.0,1.32980236]
[1747094809971,0.002,102660.0,102650.0,1.33980236]
[1747094810171,0.002,102660.0,102650.0,1.43565666]
[1747094810588,0.002,102660.0,102650.0,1.33980236]
[1747094813419,0.002,102660.0,102650.0,1.32453952]
[1747094813636,0.002,102660.0,102650.0,1.33453952]
[1747094813851,0.002,102660.0,102650.0,1.34908037]
[1747094814085,0.002,102660.0,102650.0,1.60953459]
[1747094814295,0.002,102660.0,102650.0,1.70538889]
[1747094815596,0.002,102660.0,102650.0,2.10538889]
[1747094816242,0.002,102660.0,102650.0,2.09938889]
[1747094816443,0.001,102660.0,102650.0,2.09938889]
[1747094816779,0.002,102660.0,102650.0,2.10638889]
[1747094817634,0.002,102660.0,102650.0,1.92946974]
[1747094817861,0.001,102660.0,102650.0,1.91790974]
[1747094818066,0.001,102660.0,102650.0,1.52290974]
[1747094818771,0.001,102660.0,102650.0,1.53290974]
[1747094818945,0.001,102660.0,102650.0,1.52290974]
[1747094819421,0.001,102660.0,102650.0,1.53290974]
[1747094820315,0.001,102660.0,102650.0,1.44937467]
[1747094820536,0.001,102660.0,102650.0,1.45937467]
[1747094820745,0.001,102660.0,102650.0,1.44937467]
[1747094821097,0.001,102660.0,102650.0,1.45937467]
[1747094821311,0.001,102660.0,102650.0,1.44937467]
[1747094821518,0.001,102660.0,102650.0,1.45937467]
[1747094824670,0.001,102660.0,102650.0,1.48861367]
[1747094827437,0.001,102660.0,102650.0,1.48761367]
[1747094829676,0.001,102660.0,102650.0,1.29037367]
[1747094829880,0.001,102660.0,102650.0,1.47681367]
[1747094831364,0.001,102660.0,102650.0,1.46173367]
[1747094832197,0.0174,102660.0,102650.0,0.3331453]
[1747094832406,0.04314013,102660.0,102650.0,0.3331453]
[1747094832636,0.0334,102660.0,102650.0,0.33842245]
[1747094833078,0.0334,102660.0,102650.0,0.58887667]
[1747094833525,0.0174,102660.0,102650.0,0.58887667]
[1747094834000,0.0174,102660.0,102650.0,0.67945382]
[1747094834235,0.0174,102660.0,102650.0,0.68473042]
[1747094835592,0.0174,102660.0,102650.0,0.68472838]
[1747094838383,0.0174,102660.0,102650.0,0.58887408]
[1747094839527,0.0174,102660.0,102650.0,0.58359952]